[Event "SWE-ch Juniors 2018"]
[Site "Ronneby"]
[Date "2018.06.30"]
[Round "1"]
[White "Storme, Isak"]
[Black "Emmoth, Alfons"]
[Result "1-0"]
[ECO "C06"]
[WhiteElo "2277"]
[BlackElo "2176"]
[Annotator "NA"]
[PlyCount "73"]
[EventDate "2018.06.30"]
[EventType "tourn"]
[EventCountry "SWE"]
[SourceTitle "playchess.com"]
[Source "ChessBase"]
[SourceQuality "1"]
[TimeControl "40/5400+30:1800+30"]

1. e4 {[%emt 0:00:00]} e6 {[%emt 0:00:00]} 2. d4 {[%emt 0:00:00]} d5 {[%emt 0:00:00]} 3. Nd2 {[%emt 0:00:00]} Nf6 {[%emt 0:00:28]} 4. e5 {[%emt 0:00:04]} Nfd7 {[%emt 0:00:06]} 5. Bd3 {[%emt 0:00:09]} c5 {[%emt 0:00:24]} 6. c3 {[%emt 0:00:11]} Nc6 {[%emt 0:00:15]} 7. Ne2 {[%emt 0:00:09]} cxd4 {[%emt 0:00:25]} 8. cxd4 {[%emt 0:00:07]} f6 {[%emt 0:00:21]} 9. exf6 {[%emt 0:00:26]} Nxf6 {[%emt 0:00:40]} 10. Nf3 {[%emt 0:00:33]} Bd6 {[%emt 0:00:19]} 11. O-O {[%emt 0:00:14]} Qc7 {[%emt 0:00:39]} 12. h3 {[%emt 0:00:17]} O-O {[%emt 0:01:56]} 13. Be3 {[%emt 0:00:38]} Bd7 {[%emt 0:02:54]} 14. Re1 {[%emt 0:01:05]} Rac8 {[%emt 0:07:13]} 15. Rc1 {[%emt 0:05:26]} a6 {[%emt 0:05:00]} 16. Qd2 {[%emt 0:13:47]} Qb8 {[%emt 0:07:23]} 17. a3 {[%emt 0:04:26]} b5 {[%emt 0:14:14]} 18. Kh1 {[%emt 0:25:08]} Rce8 {[%emt 0:13:33]} 19. Ng3 {[%emt 0:12:37]} Rc8 {[%emt 0:16:10]} 20. Bg5 {[%emt 0:03:28]} Bxg3 {[%emt 0:09:43]} 21. fxg3 {[%emt 0:00:07]} Nh5 {[%emt 0:00:19]} 22. g4 {[%emt 0:03:59]} Nf4 {[%emt 0:01:43]} 23. Bb1 {[%emt 0:02:33]} Nxh3 {[%emt 0:02:42]} 24. Bxh7+ {[%emt 0:06:21]} Kxh7 {[%emt 0:02:19]} 25. Qd3+ {[%emt 0:00:12]} Kg8 {[%emt 0:00:09]} 26. gxh3 {[%emt 0:00:55]} Qg3 {[%emt 0:01:21]} 27. Ne5 {[%emt 0:00:45]} Qxd3 {[%emt 0:01:21]} 28. Nxd3 {[%emt 0:00:07]} Nxd4 {[%emt 0:03:43]} 29. Ne5 {[%emt 0:03:53]} Rxc1 {[%emt 0:01:31]} 30. Rxc1 {[%emt 0:00:17]} Be8 {[%emt 0:03:46]} 31. Be7 {[%emt 0:00:33]} Rf2 {[%emt 0:02:20]} 32. Rc8 {[%emt 0:01:02]} Re2 {[%emt 0:00:21]} 33. Rxe8+ {[%emt 0:00:48]} Kh7 {[%emt 0:00:10]} 34. Bd6 {[%emt 0:01:57]} Rxb2 {[%emt 0:00:48]} 35. g5 {[%emt 0:02:28]} a5 {[%emt 0:01:13]} 36. g6+ {[%emt 0:02:07]} Kh6 {[%emt 0:00:09]} 37. h4 {[%emt 0:00:10]} 1-0

[Event "SWE-ch Juniors 2018"]
[Site "Ronneby"]
[Date "2018.06.30"]
[Round "1"]
[White "Crevatin, Leo"]
[Black "Kucuksari, Kaan"]
[Result "0-1"]
[ECO "D70"]
[WhiteElo "2224"]
[BlackElo "2296"]
[Annotator "NA"]
[PlyCount "84"]
[EventDate "2018.06.30"]
[EventType "tourn"]
[EventCountry "SWE"]
[SourceTitle "playchess.com"]
[Source "ChessBase"]
[SourceQuality "1"]
[TimeControl "40/5400+30:1800+30"]

1. d4 {[%emt 0:00:00]} d5 {[%emt 0:00:00]} 2. c4 {[%emt 0:00:00]} c6 {[%emt 0:00:00]} 3. Nf3 {[%emt 0:01:02]} Nf6 {[%emt 0:00:00]} 4. Nbd2 {[%emt 0:00:04]} e6 {[%emt 0:00:00]} 5. g3 {[%emt 0:01:22]} c5 {[%emt 0:00:41]} 6. cxd5 {[%emt 0:03:08]} exd5 {[%emt 0:00:07]} 7. Bg2 {[%emt 0:01:36]} Nc6 {[%emt 0:00:38]} 8. O-O {[%emt 0:02:26]} Be7 {[%emt 0:11:21]} 9. dxc5 {[%emt 0:06:09]} Bxc5 {[%emt 0:00:07]} 10. Nb3 {[%emt 0:00:54]} Bb6 {[%emt 0:00:46]} 11. Nfd4 {[%emt 0:11:50]} O-O {[%emt 0:02:56]} 12. Bf4 {[%emt 0:06:26]} Bg4 {[%emt 0:03:36]} 13. h3 {[%emt 0:04:54]} Bh5 {[%emt 0:03:39]} 14. g4 {[%emt 0:07:55]} Bg6 {[%emt 0:00:17]} 15. Rc1 {[%emt 0:03:09]} Rc8 {[%emt 0:04:35]} 16. Nb5 {[%emt 0:05:46]} Ne4 {[%emt 0:05:39]} 17. e3 {[%emt 0:05:16]} Qd7 {[%emt 0:21:53]} 18. f3 {[%emt 0:10:12]} Nb4 {[%emt 0:11:18]} 19. fxe4 {[%emt 0:10:23]} Qxb5 {[%emt 0:05:23]} 20. Rxc8 {[%emt 0:03:52]} Rxc8 {[%emt 0:00:07]} 21. exd5 {[%emt 0:01:17]} Bd3 {[%emt 0:14:22]} 22. Rf2 {[%emt 0:02:56]} Bc4 {[%emt 0:08:00]} 23. Nd4 {[%emt 0:03:23]} Bxd4 {[%emt 0:02:01]} 24. Qxd4 {[%emt 0:00:26]} Bxd5 {[%emt 0:01:46]} 25. Bxd5 {[%emt 0:03:41]} Nxd5 {[%emt 0:01:08]} 26. a4 {[%emt 0:02:52]} Qa5 {[%emt 0:01:50]} 27. Kg2 {[%emt 0:01:23]} Nf6 {[%emt 0:00:40]} 28. Rd2 {[%emt 0:00:30]} Re8 {[%emt 0:00:20]} 29. b4 {[%emt 0:00:45]} Qxa4 {[%emt 0:00:28]} 30. Be5 {[%emt 0:00:46]} Qc6+ {[%emt 0:00:25]} 31. Kh2 {[%emt 0:00:21]} Ne4 {[%emt 0:00:28]} 32. b5 {[%emt 0:00:32]} Nxd2 {[%emt 0:00:45]} 33. bxc6 {[%emt 0:00:18]} Nf3+ {[%emt 0:00:02]} 34. Kg2 {[%emt 0:00:13]} Nxd4 {[%emt 0:00:04]} 35. Bxd4 {[%emt 0:00:18]} bxc6 {[%emt 0:00:05]} 36. Bxa7 {[%emt 0:00:05]} f6 {[%emt 0:00:11]} 37. Kf3 {[%emt 0:00:06]} Kf7 {[%emt 0:00:03]} 38. h4 {[%emt 0:00:25]} Ke6 {[%emt 0:00:18]} 39. e4 {[%emt 0:00:06]} Ra8 {[%emt 0:00:06]} 40. Bd4 {[%emt 0:00:04]} Ra3+ {[%emt 0:00:05]} 41. Kf4 {[%emt 0:30:09]} Ra4 {[%emt 0:30:30]} 42. Be3 {[%emt 0:00:08]} g6 {[%emt 0:00:31] Ke5+ Kxe5} 0-1

[Event "SWE-ch Juniors 2018"]
[Site "Ronneby"]
[Date "2018.06.30"]
[Round "1"]
[White "Carlsson, Ludvig"]
[Black "Pantzar, Milton"]
[Result "0-1"]
[ECO "C60"]
[WhiteElo "2179"]
[BlackElo "2333"]
[Annotator "NA"]
[PlyCount "34"]
[EventDate "2018.06.30"]
[EventType "tourn"]
[EventCountry "SWE"]
[SourceTitle "playchess.com"]
[Source "ChessBase"]
[SourceQuality "1"]
[TimeControl "40/5400+30:1800+30"]

1. e4 {[%emt 0:00:00]} e5 {[%emt 0:00:00]} 2. Nf3 {[%emt 0:00:00]} Nc6 {[%emt 0:00:00]} 3. Bb5 {[%emt 0:00:00]} g6 {[%emt 0:00:31]} 4. Nc3 {[%emt 0:11:17]} Bg7 {[%emt 0:03:04]} 5. d4 {[%emt 0:01:14]} Nxd4 {[%emt 0:09:48]} 6. Bc4 {[%emt 0:14:02]} Ne7 {[%emt 0:12:11]} 7. Ng5 {[%emt 0:18:39]} O-O {[%emt 0:21:50]} 8. h4 {[%emt 0:06:19]} c6 {[%emt 0:07:50]} 9. h5 {[%emt 0:05:54]} d5 {[%emt 0:01:07]} 10. Bd3 {[%emt 0:05:27]} h6 {[%emt 0:03:55]} 11. exd5 {[%emt 0:07:28]} cxd5 {[%emt 0:08:58]} 12. hxg6 {[%emt 0:12:34]} fxg6 {[%emt 0:01:59]} 13. Nh7 {[%emt 0:02:07]} Kxh7 {[%emt 0:03:05]} 14. Bxh6 {[%emt 0:01:50]} Bxh6 {[%emt 0:00:35]} 15. Qh5 {[%emt 0:00:11]} Nef5 {[%emt 0:00:35]} 16. Qh2 {[%emt 0:00:14]} e4 {[%emt 0:01:11]} 17. Ne2 {[%emt 0:00:30]} Qg5 {[%emt 0:00:30]} 0-1

[Event "SWE-ch Juniors 2018"]
[Site "Ronneby"]
[Date "2018.06.30"]
[Round "1"]
[White "Sundin, Emanuel"]
[Black "Berglind, Axel"]
[Result "1/2-1/2"]
[ECO "B22"]
[WhiteElo "2167"]
[BlackElo "2096"]
[Annotator "NA"]
[PlyCount "150"]
[EventDate "2018.06.30"]
[EventType "tourn"]
[EventCountry "SWE"]
[SourceTitle "playchess.com"]
[Source "ChessBase"]
[SourceQuality "1"]
[TimeControl "40/5400+30:1800+30"]

1. e4 {[%emt 0:00:00]} c5 {[%emt 0:00:00]} 2. c3 {[%emt 0:00:09]} g6 {[%emt 0:00:09]} 3. d4 {[%emt 0:00:57]} cxd4 {[%emt 0:00:22]} 4. cxd4 {[%emt 0:02:17]} Bg7 {[%emt 0:00:39]} 5. Nc3 {[%emt 0:02:04]} d6 {[%emt 0:01:43]} 6. Nf3 {[%emt 0:00:48]} Nf6 {[%emt 0:00:35]} 7. Be2 {[%emt 0:01:11]} O-O {[%emt 0:00:28]} 8. O-O {[%emt 0:00:06]} Nc6 {[%emt 0:04:58]} 9. h3 {[%emt 0:01:55]} a6 {[%emt 0:11:13]} 10. Be3 {[%emt 0:06:10]} e5 {[%emt 0:04:53]} 11. Rc1 {[%emt 0:18:07]} exd4 {[%emt 0:21:27]} 12. Nxd4 {[%emt 0:00:32]} Re8 {[%emt 0:00:48]} 13. Nxc6 {[%emt 0:02:01]} bxc6 {[%emt 0:00:17]} 14. Bf3 {[%emt 0:01:07]} Rb8 {[%emt 0:05:32]} 15. b3 {[%emt 0:02:37]} Qe7 {[%emt 0:04:58]} 16. Bf4 {[%emt 0:03:40]} Rd8 {[%emt 0:00:59]} 17. Re1 {[%emt 0:01:09]} Be6 {[%emt 0:02:34]} 18. Na4 {[%emt 0:04:01]} c5 {[%emt 0:03:57]} 19. Nc3 {[%emt 0:13:40]} Ne8 {[%emt 0:09:26]} 20. Qd3 {[%emt 0:06:50]} Nc7 {[%emt 0:01:39]} 21. Rcd1 {[%emt 0:04:54]} Be5 {[%emt 0:02:25]} 22. Nd5 {[%emt 0:04:24]} Bxd5 {[%emt 0:05:52]} 23. exd5 {[%emt 0:00:08]} f6 {[%emt 0:00:15]} 24. Bxe5 {[%emt 0:07:31]} fxe5 {[%emt 0:00:21]} 25. Re4 {[%emt 0:01:50]} Rf8 {[%emt 0:04:03]} 26. Bg4 {[%emt 0:00:57]} h5 {[%emt 0:02:00]} 27. Be6+ {[%emt 0:00:32]} Kg7 {[%emt 0:02:02]} 28. Ra4 {[%emt 0:02:57]} Rb6 {[%emt 0:03:32]} 29. f4 {[%emt 0:05:39]} Nxe6 {[%emt 0:05:24]} 30. dxe6 {[%emt 0:00:06]} Qxe6 {[%emt 0:00:06]} 31. fxe5 {[%emt 0:00:11]} Qxe5 {[%emt 0:01:42]} 32. Rxa6 {[%emt 0:03:03]} Rxa6 {[%emt 0:00:35]} 33. Qxa6 {[%emt 0:00:02]} Rf6 {[%emt 0:00:29]} 34. Qb7+ {[%emt 0:00:56]} Kh6 {[%emt 0:00:22]} 35. a4 {[%emt 0:01:56]} Qe3+ {[%emt 0:00:09]} 36. Kh1 {[%emt 0:00:38]} Qe2 {[%emt 0:01:21]} 37. Qd5 {[%emt 0:01:06]} Rf2 {[%emt 0:00:37]} 38. Qxd6 {[%emt 0:01:17]} Qe4 {[%emt 0:00:10]} 39. Qg3 {[%emt 0:00:53]} Rb2 {[%emt 0:00:56]} 40. Rf1 {[%emt 0:01:05]} h4 {[%emt 0:00:29]} 41. Qf3 {[%emt 0:02:07]} Qxf3 {[%emt 0:03:40]} 42. Rxf3 {[%emt 0:02:22]} Rb1+ {[%emt 0:01:18]} 43. Kh2 {[%emt 0:00:07]} Kg7 {[%emt 0:01:41]} 44. Rc3 {[%emt 0:08:21]} Kh6 {[%emt 0:01:11]} 45. g3 {[%emt 0:06:01]} Rb2+ {[%emt 0:00:10]} 46. Kg1 {[%emt 0:00:05]} hxg3 {[%emt 0:03:52]} 47. Rxg3 {[%emt 0:00:07]} Rc2 {[%emt 0:01:34]} 48. Kf1 {[%emt 0:02:06]} Kh5 {[%emt 0:05:47]} 49. Ke1 {[%emt 0:01:41]} Kh4 {[%emt 0:00:24]} 50. Rxg6 {[%emt 0:02:21]} Rb2 {[%emt 0:00:42]} 51. Rb6 {[%emt 0:01:40]} c4 {[%emt 0:00:19]} 52. Rb4 {[%emt 0:02:11]} Kxh3 {[%emt 0:00:05]} 53. Rxc4 {[%emt 0:00:07]} Rxb3 {[%emt 0:00:05]} 54. Kd2 {[%emt 0:00:07]} Rb8 {[%emt 0:01:19]} 55. Kc3 {[%emt 0:01:15]} Kg3 {[%emt 0:01:49]} 56. Rb4 {[%emt 0:01:33]} Ra8 {[%emt 0:00:36]} 57. Rd4 {[%emt 0:05:45]} Kf3 {[%emt 0:00:19]} 58. Kb4 {[%emt 0:00:06]} Ke3 {[%emt 0:00:08]} 59. Rd7 {[%emt 0:00:12]} Rb8+ {[%emt 0:01:33]} 60. Kc5 {[%emt 0:00:13]} Ra8 {[%emt 0:00:18]} 61. Kb5 {[%emt 0:01:14]} Rb8+ {[%emt 0:01:07]} 62. Ka6 {[%emt 0:00:41]} Ke4 {[%emt 0:00:03]} 63. Ka7 {[%emt 0:00:45]} Rb1 {[%emt 0:01:18]} 64. a5 {[%emt 0:00:12]} Ke5 {[%emt 0:00:42]} 65. a6 {[%emt 0:00:25]} Ke6 {[%emt 0:02:10]} 66. Rb7 {[%emt 0:00:06]} Ra1 {[%emt 0:00:22]} 67. Kb6 {[%emt 0:00:59]} Kd6 {[%emt 0:00:41]} 68. a7 {[%emt 0:01:00]} Rb1+ {[%emt 0:00:07]} 69. Ka5 {[%emt 0:00:23]} Ra1+ {[%emt 0:00:18]} 70. Kb5 {[%emt 0:00:35]} Rb1+ {[%emt 0:00:06]} 71. Kc4 {[%emt 0:00:18]} Ra1 {[%emt 0:00:06]} 72. Rb6+ {[%emt 0:00:40]} Kc7 {[%emt 0:00:19]} 73. Rh6 {[%emt 0:00:46]} Rxa7 {[%emt 0:00:07]} 74. Rh7+ {[%emt 0:00:10]} Kb8 {[%emt 0:00:13]} 75. Rxa7 {[%emt 0:00:03]} Kxa7 {[%emt 0:00:04]} 1/2-1/2

[Event "SWE-ch Juniors 2018"]
[Site "Ronneby"]
[Date "2018.06.30"]
[Round "1"]
[White "Sorensen, Hampus"]
[Black "Forsberg, Andre"]
[Result "1-0"]
[ECO "E12"]
[WhiteElo "2154"]
[BlackElo "2048"]
[Annotator "NA"]
[PlyCount "61"]
[EventDate "2018.06.30"]
[EventType "tourn"]
[EventCountry "SWE"]
[SourceTitle "playchess.com"]
[Source "ChessBase"]
[SourceQuality "1"]
[TimeControl "40/5400+30:1800+30"]

1. d4 {[%emt 0:00:00]} Nf6 {[%emt 0:00:00]} 2. c4 {[%emt 0:00:00]} e6 {[%emt 0:00:00]} 3. Nf3 {[%emt 0:00:17]} b6 {[%emt 0:00:01]} 4. a3 {[%emt 0:00:15]} Ba6 {[%emt 0:01:01]} 5. Qc2 {[%emt 0:00:44]} Bb7 {[%emt 0:00:08]} 6. Nc3 {[%emt 0:01:11]} c5 {[%emt 0:00:38]} 7. e4 {[%emt 0:02:46]} cxd4 {[%emt 0:01:16]} 8. Nxd4 {[%emt 0:00:26]} Bc5 {[%emt 0:00:31]} 9. Nf3 {[%emt 0:01:21]} Ng4 {[%emt 0:05:30]} 10. Bg5 {[%emt 0:03:06]} Bxf2+ {[%emt 0:10:57]} 11. Qxf2 {[%emt 0:02:14]} Nxf2 {[%emt 0:00:18]} 12. Bxd8 {[%emt 0:00:06]} Nxh1 {[%emt 0:00:07]} 13. Bg5 {[%emt 0:00:10]} Ng3 {[%emt 0:10:06]} 14. hxg3 {[%emt 0:01:26]} f6 {[%emt 0:00:46]} 15. Bf4 {[%emt 0:06:30]} e5 {[%emt 0:17:11]} 16. Be3 {[%emt 0:05:36]} Nc6 {[%emt 0:02:42]} 17. Rd1 {[%emt 0:06:23]} O-O-O {[%emt 0:17:24]} 18. Nb5 {[%emt 0:06:17]} Rhf8 {[%emt 0:06:40]} 19. Nd6+ {[%emt 0:05:14]} Kc7 {[%emt 0:00:24]} 20. Nxb7 {[%emt 0:00:35]} Kxb7 {[%emt 0:00:08]} 21. g4 {[%emt 0:00:18]} Kc7 {[%emt 0:05:24]} 22. Nd2 {[%emt 0:03:20]} Rde8 {[%emt 0:02:49]} 23. Nb1 {[%emt 0:02:28]} g6 {[%emt 0:04:14]} 24. Nc3 {[%emt 0:01:28]} a6 {[%emt 0:01:02]} 25. Nd5+ {[%emt 0:00:28]} Kb7 {[%emt 0:00:30]} 26. Nxb6 {[%emt 0:03:25]} Nd4 {[%emt 0:01:17]} 27. Nxd7 {[%emt 0:02:07]} Nc2+ {[%emt 0:04:04]} 28. Ke2 {[%emt 0:00:33]} Nxe3 {[%emt 0:00:44]} 29. Kxe3 {[%emt 0:00:04]} Rf7 {[%emt 0:00:26]} 30. Nc5+ {[%emt 0:00:08]} Kb6 {[%emt 0:00:25]} 31. Rd6+ {[%emt 0:01:45]} 1-0

[Event "SWE-ch Juniors 2018"]
[Site "Ronneby"]
[Date "2018.07.01"]
[Round "2"]
[White "Pantzar, Milton"]
[Black "Forsberg, Andre"]
[Result "1/2-1/2"]
[ECO "E20"]
[WhiteElo "2333"]
[BlackElo "2048"]
[Annotator "NA"]
[PlyCount "38"]
[EventDate "2018.06.30"]
[EventType "tourn"]
[EventCountry "SWE"]
[SourceTitle "playchess.com"]
[Source "ChessBase"]
[SourceQuality "1"]
[TimeControl "40/5400+30:1800+30"]

{[%evp 13,34,6,17,35,53,43,68,50,42,28,110,137,143,148,274,277,242,267,265,0,20,-77,-104]} 1. d4 {[%emt 0:00:00]} Nf6 {[%emt 0:00:00]} 2. c4 {[%emt 0:00:00]} e6 {[%emt 0:00:00]} 3. Nc3 {[%emt 0:00:00]} Bb4 {[%emt 0:00:00]} 4. Bf4 {[%emt 0:00:29]} O-O {[%emt 0:02:45]} 5. e3 {[%emt 0:00:51]} b6 {[%emt 0:01:54]} 6. Nge2 {[%emt 0:01:35]} Re8 {[%emt 0:00:43]} 7. a3 {[%emt 0:10:12]} Bf8 {[%emt 0:00:19]} 8. e4 {[%emt 0:09:15]} d5 {[%emt 0:04:29]} 9. e5 $1 {[%emt 0:04:39]} Nfd7 {[%emt 0:00:12]} 10. cxd5 {[%emt 0:12:31]} exd5 {[%emt 0:02:04]} 11. Nxd5 {[%emt 0:01:03]} c5 {[%emt 0:00:15] [#]} (11... Bb7 $11 12. Nec3 c5) 12. e6 $1 {[%emt 0:01:02]} fxe6 {[%emt 0:12:18]} 13. Nc7 {[%emt 0:12:42]} e5 {[%emt 0:01:08]} (13... Bb7 $16 14. Nxe8 (14. Nxa8 Bxa8 15. dxc5 Nxc5 $18) 14... Qxe8 15. dxc5 Bxc5) 14. Nxe8 {[%emt 0:08:28]} ({Not} 14. Nxa8 exf4 15. Qb3+ Kh8 $17) 14... exf4 {[%emt 0:01:23]} 15. Qb3+ {[%emt 0:00:14]} Kh8 {[%emt 0:01:09]} 16. Qf7 $2 {[%emt 0:06:02]} (16. Qd5 $18) 16... Nc6 {[%emt 0:06:30]} 17. Nxf4 {[%emt 0:02:39] [#]} (17. O-O-O $11 Ba6 18. dxc5 (18. Nxf4 Bxf1 19. Rhxf1 Qxe8 $15)) 17... Bb7 $17 {[%emt 0:10:34]} 18. Nc7 {[%emt 0:12:35]} Qxc7 {[%emt 0:08:31]} 19. Bc4 {[%emt 0:00:10]} Ne7 {[%emt 0:01:00]} 1/2-1/2

[Event "SWE-ch Juniors 2018"]
[Site "Ronneby"]
[Date "2018.07.01"]
[Round "2"]
[White "Kucuksari, Kaan"]
[Black "Storme, Isak"]
[Result "1/2-1/2"]
[ECO "E06"]
[WhiteElo "2296"]
[BlackElo "2277"]
[Annotator "NA"]
[PlyCount "124"]
[EventDate "2018.06.30"]
[EventType "tourn"]
[EventCountry "SWE"]
[SourceTitle "playchess.com"]
[Source "ChessBase"]
[SourceQuality "1"]
[TimeControl "40/5400+30:1800+30"]

1. d4 {[%emt 0:00:00]} Nf6 {[%emt 0:00:00]} 2. Nf3 {[%emt 0:00:00]} e6 {[%emt 0:00:00]} 3. c4 {[%emt 0:00:00]} d5 {[%emt 0:00:00]} 4. g3 {[%emt 0:00:48]} Be7 {[%emt 0:00:01]} 5. Bg2 {[%emt 0:00:05]} O-O {[%emt 0:00:08]} 6. Nbd2 {[%emt 0:03:32]} c5 {[%emt 0:04:47]} 7. cxd5 {[%emt 0:03:09]} exd5 {[%emt 0:00:31]} 8. dxc5 {[%emt 0:03:23]} Bxc5 {[%emt 0:00:13]} 9. Nb3 {[%emt 0:00:29]} Bb6 {[%emt 0:02:44]} 10. O-O {[%emt 0:00:14]} Nc6 {[%emt 0:01:53] LiveBook: 70 Games} 11. Nbd4 {[%emt 0:02:34]} Ne4 {[%emt 0:11:28] D30: Queen's Gambit Declined: Systems without Nc3} (11... Re8 12. b3 Bg4 13. Bb2 Ne4 14. Rc1 Rc8 15. Rc2 Qd6 16. a3 h5 17. b4 h4 18. Nxc6 Rxc6 19. Nd4 Rxc2 20. Qxc2 hxg3 21. hxg3 Nxg3 22. fxg3 Rxe2 {½-½ (29) Rakhmanov,A (2670)-Shimanov,A (2623) Sochi 2017}) 12. Be3 {[%emt 0:02:44]} Bg4 {[%emt 0:09:19]} (12... Qf6 $142) 13. Rc1 {[%emt 0:07:21]} Rc8 {[%emt 0:07:39]} 14. Nxc6 $1 $146 {[%emt 0:12:23]} ({Predecessor:} 14. Qa4 Qf6 15. Rfd1 Bxf3 16. exf3 Nxd4 17. Rxc8 Nxf3+ 18. Bxf3 Rxc8 19. Bxe4 dxe4 20. Qxe4 Qxb2 21. Qxb7 {½-½ (35) Glavina,P (2420)-Castaner Harster,X St Cugat 1993}) 14... Rxc6 {[%emt 0:09:43]} 15. Rxc6 {[%emt 0:12:16]} bxc6 {[%emt 0:02:19]} 16. Ne5 {[%emt 0:05:21]} Bxe3 {[%emt 0:04:25]} 17. Nxg4 {[%emt 0:07:43]} Bb6 {[%emt 0:01:13]} 18. Bxe4 {[%emt 0:12:51]} dxe4 {[%emt 0:00:07]} 19. Ne5 {[%emt 0:00:06]} Bxf2+ $1 {[%emt 0:03:53]} 20. Kg2 {[%emt 0:00:02]} e3 {[%emt 0:09:02]} 21. Qxd8 {[%emt 0:16:07]} Rxd8 {[%emt 0:00:06]} 22. Rb1 {[%emt 0:03:59]} Rd6 {[%emt 0:12:30]} 23. Nd3 {[%emt 0:02:00]} Rf6 {[%emt 0:01:00]} 24. Rc1 {[%emt 0:00:24]} h5 {[%emt 0:05:53]} 25. Rc5 {[%emt 0:02:32]} h4 {[%emt 0:01:46]} 26. g4 {[%emt 0:00:04]} Rd6 {[%emt 0:00:51]} 27. Rc4 {[%emt 0:01:27]} h3+ {[%emt 0:02:48]} 28. Kf3 {[%emt 0:01:22]} Bg1 {[%emt 0:01:36]} 29. Kg3 {[%emt 0:00:25]} Bf2+ {[%emt 0:00:46]} 30. Nxf2 {[%emt 0:00:18]} exf2 {[%emt 0:00:08]} 31. Kxf2 {[%emt 0:00:01]} Rd2 {[%emt 0:01:06]} 32. Rxc6 {[%emt 0:00:56]} Rxb2 {[%emt 0:00:11]} 33. Ra6 {[%emt 0:00:06]} Rb7 {[%emt 0:00:23]} 34. Kg3 {[%emt 0:01:31]} Re7 {[%emt 0:00:16]} 35. Kf2 {[%emt 0:00:32]} Re4 {[%emt 0:01:26]} 36. Kf3 {[%emt 0:00:23]} Re7 {[%emt 0:00:06]} 37. Kf2 {[%emt 0:00:32]} Re4 {[%emt 0:00:08]} 38. Kf3 {[%emt 0:00:15]} Re7 {[%emt 0:00:07]} 39. Ra3 {[%emt 0:00:45]} Kh7 {[%emt 0:06:27]} 40. e3 {[%emt 0:00:40]} Kg6 {[%emt 0:01:50]} 41. Kg3 {[%emt 0:01:47]} f5 {[%emt 0:00:24]} 42. Kxh3 {[%emt 0:00:34]} Kg5 {[%emt 0:00:12]} 43. gxf5 {[%emt 0:08:56]} Kxf5 {[%emt 0:00:08]} 44. Kg3 {[%emt 0:00:13]} Ke4 $16 {[%emt 0:07:57]} (44... g5 $14) 45. Kf2 {[%emt 0:08:39]} g5 {[%emt 0:08:01]} 46. Ra4+ {[%emt 0:04:01]} Kf5 {[%emt 0:03:43]} 47. Kf3 {[%emt 0:00:54]} Rh7 {[%emt 0:00:43]} 48. Ra5+ {[%emt 0:00:40]} Kf6 {[%emt 0:00:30]} 49. Ra6+ {[%emt 0:01:33]} Ke5 {[%emt 0:00:20]} 50. Ra5+ {[%emt 0:00:24]} Kf6 {[%emt 0:00:08]} 51. a4 {[%emt 0:05:37]} Rxh2 {[%emt 0:04:56]} 52. Rxa7 {[%emt 0:00:25]} Ra2 {[%emt 0:00:30]} 53. Ke4 {[%emt 0:02:38]} g4 {[%emt 0:02:09]} 54. Kf4 {[%emt 0:00:11]} Ra3 {[%emt 0:00:25]} 55. a5 {[%emt 0:01:03]} g3 {[%emt 0:01:25]} 56. Kxg3 {[%emt 0:00:19]} Rxe3+ {[%emt 0:00:09]} 57. Kf4 {[%emt 0:00:03]} Ra3 {[%emt 0:01:30]} 58. Ke4 {[%emt 0:00:47]} Ke6 {[%emt 0:00:20]} 59. Kd4 {[%emt 0:00:04]} Kd6 {[%emt 0:00:13]} 60. Kc4 {[%emt 0:00:24]} Kc6 {[%emt 0:00:13]} 61. Kb4 {[%emt 0:00:03]} Ra1 {[%emt 0:00:16]} 62. Ra6+ {[%emt 0:01:07]} Kb7 {[%emt 0:00:07]} 1/2-1/2

[Event "SWE-ch Juniors 2018"]
[Site "Ronneby"]
[Date "2018.07.01"]
[Round "2"]
[White "Carlsson, Ludvig"]
[Black "Sundin, Emanuel"]
[Result "0-1"]
[ECO "A52"]
[WhiteElo "2179"]
[BlackElo "2167"]
[Annotator "NA"]
[PlyCount "92"]
[EventDate "2018.06.30"]
[EventType "tourn"]
[EventCountry "SWE"]
[SourceTitle "playchess.com"]
[Source "ChessBase"]
[SourceQuality "1"]
[TimeControl "40/5400+30:1800+30"]

{[%evp 21,64,25,29,32767,24,16,30,-38,-61,-9,-15,-68,-62,-64,-73,-75,-71,-67,-54,-68,-62,-56,-64,-89,-50,-75,-44,-100,-95,-99,-61,-129,-126,-147,-108,-166,-114,-122,32767,32767,32767,32767,-222,-383,-452]} 1. d4 {[%emt 0:00:00]} Nf6 {[%emt 0:00:00]} 2. c4 {[%emt 0:00:00]} e5 {[%emt 0:00:46]} 3. dxe5 {[%emt 0:00:14]} Ng4 {[%emt 0:00:09]} 4. Bf4 {[%emt 0:00:41]} Nc6 {[%emt 0:00:07]} 5. Nf3 {[%emt 0:00:08]} Bb4+ {[%emt 0:00:15]} 6. Nbd2 {[%emt 0:01:31]} Qe7 {[%emt 0:00:23]} 7. a3 {[%emt 0:00:14]} Ngxe5 {[%emt 0:00:11]} 8. Nxe5 {[%emt 0:00:08]} Nxe5 {[%emt 0:00:05]} 9. e3 {[%emt 0:00:09]} Bc5 {[%emt 0:01:44] A52: Budapest Gambit} (9... Bxd2+ 10. Qxd2 O-O 11. c5 Rd8 12. Qd5 d6 13. cxd6 cxd6 14. Be2 Be6 15. Qd2 Bc4 16. Bxc4 Nxc4 17. Qd4 d5 18. O-O Na5 {½-½ (30) Tari,A (2595)-Maghsoodloo,P (2584) Kocaeli 2017}) 10. b4 {[%emt 0:02:01]} Bd4 {[%emt 0:00:22]} 11. Rb1 {[%emt 0:20:53]} d6 {[%emt 0:00:36]} 12. Be2 {[%emt 0:14:55]} Bf5 {[%emt 0:01:34]} 13. Rb3 {[%emt 0:02:40]} Ng6 {[%emt 0:01:24]} 14. Bxd6 $146 {[%emt 0:03:44]} ({Predecessor:} 14. Bg3 Bf6 15. O-O {0-1 (37) Moreno,C (1879)-Restuccia,F (2079) Buenos Aires 2015}) 14... cxd6 {[%emt 0:00:58]} 15. exd4 {[%emt 0:00:47]} Nf4 {[%emt 0:00:37]} 16. g3 {[%emt 0:01:29] [#]} Bc2 $1 {[%emt 0:02:54]} 17. gxf4 {[%emt 0:01:17]} Bxd1 {[%emt 0:00:16]} 18. Re3 {[%emt 0:00:10] [#]} Bxe2 $1 {[%emt 0:00:55]} 19. Kxe2 {[%emt 0:00:13]} Kd7 {[%emt 0:01:29]} 20. Rxe7+ {[%emt 0:00:08]} Kxe7 {[%emt 0:00:01]} 21. Kd3 {[%emt 0:02:15]} Rhe8 {[%emt 0:01:41]} 22. Nf1 {[%emt 0:00:36]} Kd7 {[%emt 0:06:20]} 23. Ne3 {[%emt 0:00:16]} Re6 {[%emt 0:13:43]} 24. Rg1 {[%emt 0:01:45]} Rg6 {[%emt 0:01:49]} 25. Rg3 {[%emt 0:00:12]} a6 {[%emt 0:06:31]} 26. f5 {[%emt 0:01:10]} ({White should play} 26. Rh3 $15) 26... Rxg3 {[%emt 0:00:10]} 27. hxg3 {[%emt 0:00:21]} h5 {[%emt 0:04:47]} 28. c5 {[%emt 0:01:45] [#]} h4 $1 {[%emt 0:17:44]} 29. gxh4 {[%emt 0:00:19]} Rh8 {[%emt 0:01:25]} 30. Ng2 {[%emt 0:06:14]} Kc6 {[%emt 0:09:43]} 31. a4 {[%emt 0:02:03]} dxc5 {[%emt 0:04:03]} 32. dxc5 {[%emt 0:02:13] [#]} (32. bxc5 {was the only chance.} b6 33. cxb6) 32... a5 $19 {[%emt 0:00:42]} 33. bxa5 {[%emt 0:03:47]} Kxc5 {[%emt 0:00:18]} 34. Ke4 {[%emt 0:02:34]} Re8+ {[%emt 0:05:14]} 35. Kf4 {[%emt 0:01:12]} Kb4 {[%emt 0:00:14]} 36. Kg5 {[%emt 0:01:00]} Kxa5 {[%emt 0:01:09]} 37. h5 {[%emt 0:00:28]} Kxa4 {[%emt 0:02:15]} 38. f4 {[%emt 0:04:49]} b5 {[%emt 0:01:23]} 39. f6 {[%emt 0:00:06]} gxf6+ {[%emt 0:00:07]} 40. Kxf6 {[%emt 0:00:07]} Rh8 {[%emt 0:04:44]} 41. Kxf7 {[%emt 0:31:32]} Rxh5 {[%emt 0:30:18]} 42. Kg6 {[%emt 0:01:22]} Rh3 {[%emt 0:00:10]} 43. Ne1 {[%emt 0:00:38]} b4 {[%emt 0:00:29]} 44. f5 {[%emt 0:00:35]} b3 {[%emt 0:00:30]} 45. Kg5 {[%emt 0:01:46]} b2 {[%emt 0:01:02]} 46. Kg4 {[%emt 0:00:09]} Rh1 {[%emt 0:01:42]} 0-1